[Event "*** Titled Tuesday Blitz"]
[Site "Chess.com"]
[Date "2020.10.20"]
[Round "6"]
[White "Olga_Zhuravleva"]
[Black "Grieve72"]
[Result "0-1"]
[WhiteElo "2323"]
[BlackElo "2445"]
[TimeControl "180+1"]
[EndTime "11:08:09 PDT"]
[Termination "Grieve72 won by resignation"]

1. e4 {[%clk 0:01:13.4]} 1... e5 {[%clk 0:02:57.6]} 2. Nf3 {[%clk 0:01:13.7]}
2... Nc6 {[%clk 0:02:56.5]} 3. Bc4 {[%clk 0:01:14.3]} 3... Nf6 {[%clk
0:02:56.1]} 4. Ng5 {[%clk 0:01:13.5]} 4... d5 {[%clk 0:02:55.6]} 5. exd5 {[%clk
0:01:14.1]} 5... Na5 {[%clk 0:02:55]} 6. Bb5+ {[%clk 0:01:14.5]} 6... c6 {[%clk
0:02:54.7]} 7. dxc6 {[%clk 0:01:15]} 7... bxc6 {[%clk 0:02:54.8]} 8. Be2 {[%clk
0:01:15.7]} 8... Bd6 {[%clk 0:02:49.6]} 9. d3 {[%clk 0:01:12.7]} 9... O-O {[%clk
0:02:48]} 10. O-O {[%clk 0:01:11.4]} 10... c5 {[%clk 0:02:42.9]} 11. Nc3 {[%clk
0:01:11.6]} 11... h6 {[%clk 0:02:39.4]} 12. Nge4 {[%clk 0:01:11.7]} 12... Bb7
{[%clk 0:02:39.1]} 13. Bf3 {[%clk 0:01:10.4]} 13... Nc6 {[%clk 0:02:33.7]} 14.
Be3 {[%clk 0:01:08]} 14... Qe7 {[%clk 0:02:29.3]} 15. Nb5 {[%clk 0:01:01.8]}
15... Nxe4 {[%clk 0:02:25.6]} 16. Bxe4 {[%clk 0:01:02.2]} 16... f5 {[%clk
0:02:13]} 17. Bd5+ {[%clk 0:01:00.9]} 17... Kh8 {[%clk 0:02:13.1]} 18. f4 {[%clk
0:00:53.3]} 18... exf4 {[%clk 0:02:05.2]} 19. Bxf4 {[%clk 0:00:52.7]} 19... Bxf4
{[%clk 0:02:04.7]} 20. Rxf4 {[%clk 0:00:53.6]} 20... Qe5 {[%clk 0:01:27.8]} 21.
Qf3 {[%clk 0:00:36]} 21... Qxb2 {[%clk 0:01:27.7]} 22. Bxc6 {[%clk 0:00:28.3]}
22... Qxa1+ {[%clk 0:01:18.1]} 23. Kf2 {[%clk 0:00:28]} 23... Rae8 {[%clk
0:01:00.5]} 24. g3 {[%clk 0:00:19.9]} 24... Qe1+ {[%clk 0:00:40.1]} 25. Kg2
{[%clk 0:00:20.1]} 25... Qd2+ {[%clk 0:00:40]} 26. Kh3 {[%clk 0:00:19.8]} 26...
Re2 {[%clk 0:00:38.4]} 27. g4 {[%clk 0:00:06.8]} 27... fxg4+ {[%clk 0:00:31.1]}
28. Qxg4 {[%clk 0:00:07.7]} 28... Rxf4 {[%clk 0:00:20.9]} 0-1

[Event "*** Titled Tuesday Blitz"]
[Site "Chess.com"]
[Date "2020.10.20"]
[Round "6"]
[White "krasavetc"]
[Black "pedromartinez91"]
[Result "0-1"]
[WhiteElo "2331"]
[BlackElo "2487"]
[TimeControl "180+1"]
[EndTime "11:08:10 PDT"]
[Termination "pedromartinez91 won by resignation"]

1. e4 {[%clk 0:03:00.1]} 1... c5 {[%clk 0:02:49.3]} 2. Nf3 {[%clk 0:02:58.5]}
2... Nc6 {[%clk 0:02:49.5]} 3. c3 {[%clk 0:02:58.1]} 3... Qa5 {[%clk 0:02:47]}
4. Bc4 {[%clk 0:02:49.7]} 4... e6 {[%clk 0:02:44.1]} 5. O-O {[%clk 0:02:49.1]}
5... b5 {[%clk 0:02:44.2]} 6. Be2 {[%clk 0:02:47.3]} 6... Nf6 {[%clk 0:02:42.7]}
7. e5 {[%clk 0:02:44]} 7... Nd5 {[%clk 0:02:40.2]} 8. d4 {[%clk 0:02:41.5]} 8...
cxd4 {[%clk 0:02:41.1]} 9. cxd4 {[%clk 0:02:36.7]} 9... Be7 {[%clk 0:02:39.4]}
10. Nc3 {[%clk 0:02:30.3]} 10... Nxc3 {[%clk 0:02:35.8]} 11. bxc3 {[%clk
0:02:29]} 11... Qxc3 {[%clk 0:02:35]} 12. Bd2 {[%clk 0:02:27.5]} 12... Qa3
{[%clk 0:02:31.6]} 13. Bxb5 {[%clk 0:02:22.4]} 13... Ba6 {[%clk 0:02:29.8]} 14.
Rb1 {[%clk 0:01:46.7]} 14... O-O {[%clk 0:02:20.2]} 15. Qe2 {[%clk 0:01:34.4]}
15... Bxb5 {[%clk 0:02:15.6]} 16. Rxb5 {[%clk 0:01:33.6]} 16... Rab8 {[%clk
0:02:08]} 17. Rfb1 {[%clk 0:01:30.6]} 17... Qxa2 {[%clk 0:02:06.9]} 18. Rxb8
{[%clk 0:01:28.5]} 18... Rxb8 {[%clk 0:02:07.8]} 19. Rxb8+ {[%clk 0:01:26.6]}
19... Nxb8 {[%clk 0:02:08.7]} 20. Qb5 {[%clk 0:01:26.5]} 20... Nc6 {[%clk
0:02:07.3]} 21. Qb7 {[%clk 0:01:21.8]} 21... Qd5 {[%clk 0:01:56.6]} 22. h3
{[%clk 0:01:12.9]} 22... h6 {[%clk 0:01:56]} 23. Qc8+ {[%clk 0:01:09.4]} 23...
Bf8 {[%clk 0:01:55.5]} 24. Bc1 {[%clk 0:00:58.6]} 24... a5 {[%clk 0:01:33.1]}
25. Kh2 {[%clk 0:00:46.4]} 25... Nxd4 {[%clk 0:01:18.5]} 26. Nxd4 {[%clk
0:00:36.5]} 26... Qxd4 {[%clk 0:01:19.4]} 27. Ba3 {[%clk 0:00:35.6]} 27... Qxe5+
{[%clk 0:01:18.7]} 28. g3 {[%clk 0:00:35.1]} 28... d6 {[%clk 0:01:16.5]} 29. Qb8
{[%clk 0:00:34]} 29... Qd5 {[%clk 0:01:09.4]} 30. h4 {[%clk 0:00:31.5]} 30... h5
{[%clk 0:01:09]} 31. Qd8 {[%clk 0:00:25.3]} 31... a4 {[%clk 0:01:07.9]} 32. Qe8
{[%clk 0:00:22.6]} 32... Qd3 {[%clk 0:00:38.1]} 33. Qxa4 {[%clk 0:00:20.5]}
33... Qf3 {[%clk 0:00:32]} 34. Qd4 {[%clk 0:00:18.2]} 34... Qxa3 {[%clk
0:00:27]} 0-1

[Event "*** Titled Tuesday Blitz"]
[Site "Chess.com"]
[Date "2020.10.20"]
[Round "6"]
[White "MF1966Idrisov"]
[Black "Sokoloco"]
[Result "0-1"]
[WhiteElo "2333"]
[BlackElo "2468"]
[TimeControl "180+1"]
[EndTime "11:08:12 PDT"]
[Termination "Sokoloco won by resignation"]

1. Nf3 {[%clk 0:03:00.9]} 1... g6 {[%clk 0:02:55.9]} 2. d4 {[%clk 0:02:59.8]}
2... Bg7 {[%clk 0:02:56.2]} 3. Bf4 {[%clk 0:02:59.8]} 3... d6 {[%clk 0:02:55.7]}
4. e3 {[%clk 0:02:58.6]} 4... Nf6 {[%clk 0:02:47]} 5. h3 {[%clk 0:02:58.2]} 5...
Nbd7 {[%clk 0:02:47.3]} 6. Be2 {[%clk 0:02:57]} 6... b6 {[%clk 0:02:47.6]} 7.
O-O {[%clk 0:02:56.4]} 7... Bb7 {[%clk 0:02:48.2]} 8. c4 {[%clk 0:02:56.5]} 8...
O-O {[%clk 0:02:46.2]} 9. Nc3 {[%clk 0:02:55.9]} 9... a5 {[%clk 0:02:46.3]} 10.
Re1 {[%clk 0:02:50.9]} 10... Re8 {[%clk 0:02:41]} 11. Qd2 {[%clk 0:02:42.4]}
11... e5 {[%clk 0:02:39.1]} 12. Bg3 {[%clk 0:02:27.8]} 12... Qe7 {[%clk
0:02:24.2]} 13. Rad1 {[%clk 0:02:24.7]} 13... Rad8 {[%clk 0:02:15]} 14. b3
{[%clk 0:02:22.5]} 14... Nh5 {[%clk 0:01:52.6]} 15. Bh4 {[%clk 0:02:18.7]} 15...
f6 {[%clk 0:01:34.9]} 16. Nd5 {[%clk 0:02:15.6]} 16... Bxd5 {[%clk 0:01:29.6]}
17. cxd5 {[%clk 0:02:15]} 17... g5 {[%clk 0:01:29.5]} 18. Bg3 {[%clk 0:02:14.1]}
18... Nxg3 {[%clk 0:01:25.1]} 19. fxg3 {[%clk 0:02:13.5]} 19... exd4 {[%clk
0:01:14.5]} 20. Nxd4 {[%clk 0:02:12.4]} 20... Qxe3+ {[%clk 0:01:08]} 21. Qxe3
{[%clk 0:02:12.3]} 21... Rxe3 {[%clk 0:01:08.9]} 22. Ne6 {[%clk 0:02:09.2]}
22... Rc8 {[%clk 0:01:06.2]} 23. Bg4 {[%clk 0:02:06.3]} 23... Rxe1+ {[%clk
0:01:03.8]} 24. Rxe1 {[%clk 0:02:05.7]} 24... Ne5 {[%clk 0:00:56.2]} 25. Nxg7
{[%clk 0:01:45.2]} 25... Nxg4 {[%clk 0:00:51.7]} 26. Re7 {[%clk 0:01:43.7]}
26... Ne5 {[%clk 0:00:34.5]} 27. Nh5 {[%clk 0:01:38.7]} 27... Rf8 {[%clk
0:00:13.1]} 28. Rxc7 {[%clk 0:01:36.9]} 28... Rf7 {[%clk 0:00:12.7]} 29. Rc8+
{[%clk 0:01:34.5]} 29... Rf8 {[%clk 0:00:12.8]} 30. Rxf8+ {[%clk 0:01:31.3]}
30... Kxf8 {[%clk 0:00:13.2]} 31. Nxf6 {[%clk 0:01:31.6]} 31... h6 {[%clk
0:00:12]} 32. g4 {[%clk 0:01:26.7]} 32... Nd3 {[%clk 0:00:10.6]} 33. Ne4 {[%clk
0:01:23.1]} 33... Ke7 {[%clk 0:00:10.3]} 34. Nd2 {[%clk 0:01:15.4]} 34... Nb4
{[%clk 0:00:09.6]} 35. Kf2 {[%clk 0:01:11.3]} 35... Nxd5 {[%clk 0:00:07.2]} 36.
Ke2 {[%clk 0:01:08.9]} 36... Nc3+ {[%clk 0:00:06.4]} 37. Kd3 {[%clk 0:01:08.2]}
37... Nxa2 {[%clk 0:00:07.3]} 38. Ke4 {[%clk 0:01:08.1]} 38... Ke6 {[%clk
0:00:07.1]} 39. Nf3 {[%clk 0:01:06.5]} 39... Nc1 {[%clk 0:00:06.1]} 40. Nd4+
{[%clk 0:01:06.3]} 40... Kd7 {[%clk 0:00:06.6]} 41. Nf5 {[%clk 0:01:06.3]} 41...
Nxb3 {[%clk 0:00:06.6]} 42. Nxh6 {[%clk 0:01:06.3]} 42... a4 {[%clk 0:00:07.1]}
43. Kd3 {[%clk 0:01:04.8]} 43... a3 {[%clk 0:00:07.6]} 44. Kc3 {[%clk 0:01:03]}
44... a2 {[%clk 0:00:08]} 0-1

[Event "*** Titled Tuesday Blitz"]
[Site "Chess.com"]
[Date "2020.10.20"]
[Round "6"]
[White "HouseOfDurin"]
[Black "AndreyNeves"]
[Result "1-0"]
[WhiteElo "2166"]
[BlackElo "2252"]
[TimeControl "180+1"]
[EndTime "11:08:17 PDT"]
[Termination "HouseOfDurin won by resignation"]

1. d4 {[%clk 0:03:00.9]} 1... d5 {[%clk 0:02:59.3]} 2. Bg5 {[%clk 0:03:01.1]}
2... Nf6 {[%clk 0:02:56.8]} 3. Bxf6 {[%clk 0:03:01.1]} 3... gxf6 {[%clk
0:02:56.4]} 4. e3 {[%clk 0:03:02]} 4... e6 {[%clk 0:02:55.8]} 5. c4 {[%clk
0:03:02.4]} 5... c6 {[%clk 0:02:51.4]} 6. cxd5 {[%clk 0:03:01.6]} 6... cxd5
{[%clk 0:02:50.7]} 7. Nc3 {[%clk 0:03:02.5]} 7... Nc6 {[%clk 0:02:49.9]} 8. a3
{[%clk 0:03:01.4]} 8... Bd6 {[%clk 0:02:47.6]} 9. g3 {[%clk 0:03:01.4]} 9... h5
{[%clk 0:02:43.2]} 10. h4 {[%clk 0:03:00.3]} 10... Bd7 {[%clk 0:02:38.3]} 11.
Be2 {[%clk 0:02:53.5]} 11... Ne7 {[%clk 0:02:30.2]} 12. Bxh5 {[%clk 0:02:42.6]}
12... Qb6 {[%clk 0:02:30]} 13. b4 {[%clk 0:02:16.4]} 13... a5 {[%clk 0:02:20.2]}
14. b5 {[%clk 0:02:01.3]} 14... a4 {[%clk 0:02:19.6]} 15. Be2 {[%clk 0:01:57.7]}
15... Nf5 {[%clk 0:02:14.5]} 16. Bd3 {[%clk 0:01:54.3]} 16... Nxe3 {[%clk
0:01:59]} 17. fxe3 {[%clk 0:01:51.3]} 17... Bxg3+ {[%clk 0:01:58.7]} 18. Kd2
{[%clk 0:01:47.1]} 18... Qa5 {[%clk 0:01:48.4]} 19. Ne2 {[%clk 0:01:46.6]} 19...
Bxh4 {[%clk 0:01:44.5]} 20. Rc1 {[%clk 0:01:35.5]} 20... Ke7 {[%clk 0:01:38]}
21. Qf1 {[%clk 0:01:25.3]} 21... Bg5 {[%clk 0:01:26]} 22. Qf3 {[%clk 0:01:20.8]}
22... Rxh1 {[%clk 0:01:15.2]} 23. Rxh1 {[%clk 0:01:21.7]} 23... Rc8 {[%clk
0:01:14.7]} 24. Rc1 {[%clk 0:01:17.5]} 24... e5 {[%clk 0:00:58.2]} 25. Qxd5
{[%clk 0:01:13.1]} 25... Be6 {[%clk 0:00:58.2]} 26. Qxb7+ {[%clk 0:01:12.5]}
26... Rc7 {[%clk 0:00:57.9]} 27. Qa6 {[%clk 0:01:06.4]} 27... Qxa6 {[%clk
0:00:54]} 28. bxa6 {[%clk 0:01:05.7]} 28... exd4 {[%clk 0:00:53.1]} 29. Nxd4
{[%clk 0:01:06.3]} 29... Rd7 {[%clk 0:00:42.3]} 30. Nxe6 {[%clk 0:00:51.6]}
30... fxe6 {[%clk 0:00:41.2]} 31. Nxa4 {[%clk 0:00:51.6]} 31... e5 {[%clk
0:00:39.4]} 32. Nc5 {[%clk 0:00:49.2]} 32... Rc7 {[%clk 0:00:38.6]} 33. Be4
{[%clk 0:00:39.5]} 33... Bh6 {[%clk 0:00:22.4]} 34. Bb7 {[%clk 0:00:29.9]} 1-0

[Event "*** Titled Tuesday Blitz"]
[Site "Chess.com"]
[Date "2020.10.20"]
[Round "6"]
[White "ambaixador"]
[Black "Oglob71"]
[Result "0-1"]
[WhiteElo "2304"]
[BlackElo "2442"]
[TimeControl "180+1"]
[EndTime "11:08:19 PDT"]
[Termination "Oglob71 won by resignation"]

1. Nf3 {[%clk 0:03:00.9]} 1... Nf6 {[%clk 0:02:59.2]} 2. c4 {[%clk 0:03:00.6]}
2... e6 {[%clk 0:02:59]} 3. g3 {[%clk 0:03:00.4]} 3... b6 {[%clk 0:02:57.7]} 4.
Bg2 {[%clk 0:03:01.3]} 4... Bb7 {[%clk 0:02:58.3]} 5. O-O {[%clk 0:03:01.6]}
5... c5 {[%clk 0:02:58.9]} 6. Re1 {[%clk 0:03:01]} 6... d6 {[%clk 0:02:59.4]} 7.
b3 {[%clk 0:03:01.1]} 7... Nbd7 {[%clk 0:02:59.9]} 8. Bb2 {[%clk 0:03:01.5]}
8... Rc8 {[%clk 0:03:00.3]} 9. d4 {[%clk 0:03:01.7]} 9... cxd4 {[%clk
0:03:00.2]} 10. Qxd4 {[%clk 0:03:02.6]} 10... a6 {[%clk 0:02:59.8]} 11. Nc3
{[%clk 0:03:02.4]} 11... Be7 {[%clk 0:03:00.1]} 12. Rac1 {[%clk 0:03:02.5]}
12... Qc7 {[%clk 0:03:00.3]} 13. h3 {[%clk 0:02:49.1]} 13... O-O {[%clk
0:03:00]} 14. e4 {[%clk 0:02:43]} 14... Rfd8 {[%clk 0:03:00.1]} 15. Qd2 {[%clk
0:02:35.4]} 15... Bf8 {[%clk 0:02:59.9]} 16. Nd4 {[%clk 0:02:34.9]} 16... Qb8
{[%clk 0:02:59.3]} 17. f4 {[%clk 0:02:34.4]} 17... Qa8 {[%clk 0:02:58.5]} 18. g4
{[%clk 0:02:33.9]} 18... Nc5 {[%clk 0:02:51.5]} 19. Qe2 {[%clk 0:01:39]} 19...
e5 {[%clk 0:02:50.9]} 20. Nf5 {[%clk 0:01:38]} 20... exf4 {[%clk 0:02:49.4]} 21.
Nd5 {[%clk 0:01:37.9]} 21... Bxd5 {[%clk 0:02:45.7]} 22. Bxf6 {[%clk 0:01:32.5]}
22... Re8 {[%clk 0:02:45.6]} 23. cxd5 {[%clk 0:01:13.2]} 23... gxf6 {[%clk
0:02:45.1]} 24. Qd2 {[%clk 0:00:57.3]} 24... Qa7 {[%clk 0:02:40.1]} 25. Kh2
{[%clk 0:00:51.3]} 25... b5 {[%clk 0:02:40]} 26. b4 {[%clk 0:00:35.3]} 26... Nd7
{[%clk 0:02:39.5]} 27. Qxf4 {[%clk 0:00:34.7]} 27... Ne5 {[%clk 0:02:37.6]} 28.
g5 {[%clk 0:00:27.1]} 28... Ng6 {[%clk 0:02:37.2]} 29. Qg3 {[%clk 0:00:26.4]}
29... fxg5 {[%clk 0:02:37.5]} 30. Qxg5 {[%clk 0:00:25.6]} 30... Rxc1 {[%clk
0:02:19.6]} 31. Rxc1 {[%clk 0:00:25.3]} 31... h6 {[%clk 0:02:14.6]} 32. Qf6
{[%clk 0:00:24.5]} 32... Qd7 {[%clk 0:01:54.8]} 33. Rc3 {[%clk 0:00:14.2]} 33...
Qd8 {[%clk 0:01:54.8]} 34. Qd4 {[%clk 0:00:11.2]} 34... Qg5 {[%clk 0:01:51.1]}
35. Rg3 {[%clk 0:00:11]} 35... Qf4 {[%clk 0:01:51.4]} 36. Qf6 {[%clk 0:00:11.1]}
36... Qe5 {[%clk 0:01:47.4]} 37. Qxe5 {[%clk 0:00:05.6]} 37... dxe5 {[%clk
0:01:46.7]} 38. h4 {[%clk 0:00:06.1]} 38... h5 {[%clk 0:01:46.2]} 39. Rg5 {[%clk
0:00:05.9]} 39... Bxb4 {[%clk 0:01:44.6]} 40. Bf3 {[%clk 0:00:05.5]} 40... Bd2
{[%clk 0:01:44]} 41. Rxh5 {[%clk 0:00:05.6]} 41... Bf4+ {[%clk 0:01:44.5]} 42.
Kg2 {[%clk 0:00:04.9]} 42... Rc8 {[%clk 0:01:44.9]} 43. Kh3 {[%clk 0:00:04.1]}
43... Rc3 {[%clk 0:01:44.2]} 44. Kg4 {[%clk 0:00:04.6]} 44... Rc1 {[%clk
0:01:43.1]} 45. Nh6+ {[%clk 0:00:03.9]} 45... Kg7 {[%clk 0:01:42.3]} 46. Nf5+
{[%clk 0:00:03.4]} 46... Kf6 {[%clk 0:01:42.7]} 47. Rh7 {[%clk 0:00:02.1]} 47...
Rg1+ {[%clk 0:01:43.1]} 48. Kh3 {[%clk 0:00:02.5]} 48... Be3 {[%clk 0:01:39.9]}
49. h5 {[%clk 0:00:02.5]} 49... Nf4+ {[%clk 0:01:38.6]} 50. Kh2 {[%clk
0:00:02.9]} 50... Re1 {[%clk 0:01:37.9]} 51. Rh6+ {[%clk 0:00:02.8]} 51... Ng6
{[%clk 0:01:36.2]} 52. hxg6 {[%clk 0:00:03.7]} 52... fxg6 {[%clk 0:01:36.5]} 53.
Bh5 {[%clk 0:00:03.4]} 53... Bxh6 {[%clk 0:01:36.5]} 54. Bxg6 {[%clk 0:00:01.9]}
54... Kxg6 {[%clk 0:01:36.3]} 55. Nh4+ {[%clk 0:00:02.2]} 55... Kf6 {[%clk
0:01:35.5]} 56. Nf3 {[%clk 0:00:03.1]} 56... Rd1 {[%clk 0:01:35.6]} 57. d6
{[%clk 0:00:03.8]} 57... Rxd6 {[%clk 0:01:35]} 0-1

[Event "*** Titled Tuesday Blitz"]
[Site "Chess.com"]
[Date "2020.10.20"]
[Round "6"]
[White "MashaFromRussia"]
[Black "Zemerovv"]
[Result "0-1"]
[WhiteElo "2401"]
[BlackElo "2292"]
[TimeControl "180+1"]
[EndTime "11:08:19 PDT"]
[Termination "Zemerovv won by resignation"]

1. d4 {[%clk 0:03:00.9]} 1... g6 {[%clk 0:03:00.9]} 2. c4 {[%clk 0:02:59.6]}
2... Bg7 {[%clk 0:03:00.8]} 3. Nf3 {[%clk 0:02:58.7]} 3... d6 {[%clk 0:03:01.7]}
4. g3 {[%clk 0:02:58.1]} 4... Nc6 {[%clk 0:03:01.2]} 5. Bg2 {[%clk 0:02:57.4]}
5... e5 {[%clk 0:03:00.3]} 6. d5 {[%clk 0:02:55.4]} 6... Nce7 {[%clk 0:02:59.5]}
7. Nc3 {[%clk 0:02:52.8]} 7... f5 {[%clk 0:02:59.1]} 8. e4 {[%clk 0:02:46.6]}
8... Nf6 {[%clk 0:02:58.1]} 9. exf5 {[%clk 0:02:43.4]} 9... gxf5 {[%clk
0:02:56.2]} 10. c5 {[%clk 0:02:39]} 10... O-O {[%clk 0:02:53.5]} 11. O-O {[%clk
0:02:37.5]} 11... Kh8 {[%clk 0:02:50]} 12. cxd6 {[%clk 0:02:36.5]} 12... cxd6
{[%clk 0:02:49.3]} 13. Bg5 {[%clk 0:02:32.5]} 13... b6 {[%clk 0:02:46]} 14. Rc1
{[%clk 0:02:26.7]} 14... Bb7 {[%clk 0:02:44.7]} 15. Nh4 {[%clk 0:02:21.5]} 15...
Rc8 {[%clk 0:02:41.1]} 16. Qd2 {[%clk 0:02:21]} 16... Qd7 {[%clk 0:02:38.7]} 17.
Rc2 {[%clk 0:02:14.5]} 17... a6 {[%clk 0:02:35.3]} 18. Rfc1 {[%clk 0:02:14.1]}
18... b5 {[%clk 0:02:34.9]} 19. a3 {[%clk 0:02:13.2]} 19... Ng6 {[%clk
0:02:26.4]} 20. Bh3 {[%clk 0:02:05.7]} 20... Nxh4 {[%clk 0:02:23.9]} 21. Bxh4
{[%clk 0:02:06.6]} 21... Rc5 {[%clk 0:02:20.2]} 22. b4 {[%clk 0:02:02.6]} 22...
Rxd5 {[%clk 0:02:16.2]} 23. Nxd5 {[%clk 0:02:01.8]} 23... Nxd5 {[%clk
0:02:15.7]} 24. Bg2 {[%clk 0:01:59.1]} 24... e4 {[%clk 0:02:14.3]} 25. f3 {[%clk
0:01:54.6]} 25... Qe6 {[%clk 0:02:10.4]} 26. fxe4 {[%clk 0:01:50.2]} 26... fxe4
{[%clk 0:02:10.1]} 27. Qe2 {[%clk 0:01:48.9]} 27... Bd4+ {[%clk 0:02:07.4]} 28.
Kh1 {[%clk 0:01:48.4]} 28... Ne3 {[%clk 0:02:05.8]} 29. Rc7 {[%clk 0:01:45.3]}
29... Nxg2 {[%clk 0:01:57.3]} 30. Qxg2 {[%clk 0:01:36.4]} 30... Bd5 {[%clk
0:01:54.6]} 31. Re7 {[%clk 0:01:29.5]} 31... Qf5 {[%clk 0:01:42.6]} 32. g4
{[%clk 0:01:23]} 32... Qf3 {[%clk 0:01:31.5]} 33. h3 {[%clk 0:01:08.6]} 33... e3
{[%clk 0:01:30.3]} 34. Qxf3 {[%clk 0:01:08.2]} 34... Bxf3+ {[%clk 0:01:29.6]}
35. Kh2 {[%clk 0:01:08.6]} 35... e2 {[%clk 0:01:25.7]} 36. Rcc7 {[%clk 0:01:05]}
36... Be5+ {[%clk 0:01:24.8]} 37. Kg1 {[%clk 0:01:03.7]} 37... Bd4+ {[%clk
0:01:20.4]} 38. Kh2 {[%clk 0:01:03.3]} 38... Be5+ {[%clk 0:01:19.4]} 39. Kg1
{[%clk 0:00:54.8]} 39... Be4 {[%clk 0:01:18.9]} 40. Rxe5 {[%clk 0:00:31.3]}
40... Rf1+ {[%clk 0:01:10.8]} 41. Kh2 {[%clk 0:00:29.7]} 41... dxe5 {[%clk
0:01:09.8]} 42. Rc8+ {[%clk 0:00:19]} 42... Kg7 {[%clk 0:01:07.9]} 43. Rc7+
{[%clk 0:00:19.9]} 43... Kf8 {[%clk 0:01:05.7]} 44. Rc8+ {[%clk 0:00:16.7]}
44... Kf7 {[%clk 0:01:04.8]} 45. Rc7+ {[%clk 0:00:17.1]} 45... Ke6 {[%clk
0:01:02.9]} 46. Re7+ {[%clk 0:00:16.9]} 46... Kd6 {[%clk 0:01:02.4]} 47. Ra7
{[%clk 0:00:15.8]} 47... Rh1+ {[%clk 0:01:01.4]} 0-1

[Event "*** Titled Tuesday Blitz"]
[Site "Chess.com"]
[Date "2020.10.20"]
[Round "6"]
[White "Fortitudine"]
[Black "scarabee43"]
[Result "0-1"]
[WhiteElo "2293"]
[BlackElo "2476"]
[TimeControl "180+1"]
[EndTime "11:08:21 PDT"]
[Termination "scarabee43 won on time"]

1. c4 {[%clk 0:03:00.9]} 1... e6 {[%clk 0:02:59.2]} 2. g3 {[%clk 0:03:00.8]}
2... d5 {[%clk 0:02:59.5]} 3. Nf3 {[%clk 0:03:01]} 3... Nf6 {[%clk 0:02:59.3]}
4. Bg2 {[%clk 0:03:00.9]} 4... Be7 {[%clk 0:02:58.7]} 5. b3 {[%clk 0:03:01]}
5... O-O {[%clk 0:02:58.8]} 6. Bb2 {[%clk 0:03:01.2]} 6... b6 {[%clk 0:02:53.8]}
7. cxd5 {[%clk 0:02:59.1]} 7... exd5 {[%clk 0:02:51.8]} 8. d4 {[%clk 0:02:58.4]}
8... Bb7 {[%clk 0:02:49.6]} 9. O-O {[%clk 0:02:58.3]} 9... Nbd7 {[%clk
0:02:49.3]} 10. Nc3 {[%clk 0:02:51.7]} 10... Re8 {[%clk 0:02:44.7]} 11. Rc1
{[%clk 0:02:48.7]} 11... a6 {[%clk 0:02:45]} 12. Na4 {[%clk 0:02:37.5]} 12...
Bf8 {[%clk 0:02:43.4]} 13. Ne5 {[%clk 0:02:28.8]} 13... Nxe5 {[%clk 0:02:18.1]}
14. dxe5 {[%clk 0:02:29.7]} 14... Ng4 {[%clk 0:02:18.3]} 15. Qd4 {[%clk
0:02:05.8]} 15... Nxe5 {[%clk 0:02:13.9]} 16. Rfd1 {[%clk 0:01:58.7]} 16... c5
{[%clk 0:01:54.4]} 17. Qd2 {[%clk 0:01:17.1]} 17... Qc7 {[%clk 0:01:33.8]} 18.
b4 {[%clk 0:00:31.5]} 18... Nc4 {[%clk 0:01:22.7]} 19. Qc2 {[%clk 0:00:26]}
19... Rad8 {[%clk 0:00:53.7]} 20. bxc5 {[%clk 0:00:22.6]} 20... bxc5 {[%clk
0:00:53.3]} 21. Ba1 {[%clk 0:00:17.2]} 21... Bc6 {[%clk 0:00:50.4]} 22. Nc3
{[%clk 0:00:16.6]} 22... d4 {[%clk 0:00:48.3]} 23. Ne4 {[%clk 0:00:16.2]} 23...
Na3 {[%clk 0:00:45.5]} 24. Qb3 {[%clk 0:00:13.4]} 24... c4 {[%clk 0:00:45.6]}
25. Rxc4 {[%clk 0:00:08.4]} 25... Nxc4 {[%clk 0:00:43.9]} 26. Qxc4 {[%clk
0:00:09]} 26... Qb7 {[%clk 0:00:39.6]} 27. f3 {[%clk 0:00:04.4]} 27... Bb5
{[%clk 0:00:33.3]} 28. Qb3 {[%clk 0:00:02.6]} 28... Qc6 {[%clk 0:00:30.1]} 29.
Kh1 {[%clk 0:00:02.2]} 29... Bxe2 {[%clk 0:00:29.5]} 30. Re1 {[%clk 0:00:02]}
30... d3 {[%clk 0:00:29.6]} 31. Qb2 {[%clk 0:00:01.7]} 31... Qb5 {[%clk
0:00:24.4]} 0-1

[Event "*** Titled Tuesday Blitz"]
[Site "Chess.com"]
[Date "2020.10.20"]
[Round "6"]
[White "Kolle05"]
[Black "Oligan22"]
[Result "0-1"]
[WhiteElo "2294"]
[BlackElo "2426"]
[TimeControl "180+1"]
[EndTime "11:08:21 PDT"]
[Termination "Oligan22 won by resignation"]

1. e4 {[%clk 0:03:00.9]} 1... c5 {[%clk 0:03:00.5]} 2. Nf3 {[%clk 0:02:58.3]}
2... e6 {[%clk 0:03:00.9]} 3. d4 {[%clk 0:02:57.9]} 3... cxd4 {[%clk 0:03:01.8]}
4. Nxd4 {[%clk 0:02:57.3]} 4... a6 {[%clk 0:03:02.4]} 5. c4 {[%clk 0:02:57.4]}
5... Qc7 {[%clk 0:03:02.7]} 6. Nc3 {[%clk 0:02:55.4]} 6... Nf6 {[%clk
0:03:03.3]} 7. Ke2 {[%clk 0:02:54.7]} 7... b6 {[%clk 0:03:03.1]} 8. f3 {[%clk
0:02:52.5]} 8... Qxc4+ {[%clk 0:03:00.6]} 9. Kf2 {[%clk 0:02:52.7]} 9... Qc7
{[%clk 0:03:01.3]} 10. Be3 {[%clk 0:02:51.8]} 10... Nc6 {[%clk 0:02:59]} 11. Rc1
{[%clk 0:02:51]} 11... Bb7 {[%clk 0:02:55.6]} 12. g4 {[%clk 0:02:37.9]} 12...
Rc8 {[%clk 0:02:24.6]} 13. g5 {[%clk 0:02:33.7]} 13... Nh5 {[%clk 0:02:24.7]}
14. Nd5 {[%clk 0:02:00.9]} 14... exd5 {[%clk 0:02:18.6]} 15. exd5 {[%clk
0:02:01.8]} 15... Bc5 {[%clk 0:02:02.4]} 16. dxc6 {[%clk 0:01:56.2]} 16... Bxc6
{[%clk 0:02:02.8]} 17. Nxc6 {[%clk 0:01:43]} 17... Bxe3+ {[%clk 0:01:58.6]} 18.
Kxe3 {[%clk 0:01:43.7]} 18... dxc6 {[%clk 0:01:55.2]} 19. Bxa6 {[%clk
0:01:32.1]} 19... Rd8 {[%clk 0:01:47.4]} 20. Qe2 {[%clk 0:01:18.8]} 20... O-O
{[%clk 0:01:17.2]} 21. Kf2 {[%clk 0:01:09.1]} 21... b5 {[%clk 0:01:16.2]} 22.
Bxb5 {[%clk 0:00:31.2]} 22... Qb6+ {[%clk 0:01:15.8]} 23. Kf1 {[%clk 0:00:28.2]}
23... cxb5 {[%clk 0:01:13.6]} 24. Rg1 {[%clk 0:00:25]} 24... Nf4 {[%clk
0:01:10]} 25. Qf2 {[%clk 0:00:24.4]} 25... Qxf2+ {[%clk 0:01:09.1]} 26. Kxf2
{[%clk 0:00:25.3]} 26... Nd3+ {[%clk 0:01:09.6]} 27. Ke3 {[%clk 0:00:24.9]}
27... Nxc1 {[%clk 0:01:10.3]} 28. Rxc1 {[%clk 0:00:25.8]} 28... Rfe8+ {[%clk
0:01:11]} 29. Kf4 {[%clk 0:00:26.7]} 29... g6 {[%clk 0:01:10.5]} 30. Rc5 {[%clk
0:00:26.3]} 30... Rd4+ {[%clk 0:01:10.9]} 31. Kg3 {[%clk 0:00:26]} 31... b4
{[%clk 0:01:11.2]} 32. a4 {[%clk 0:00:24.2]} 32... bxa3 {[%clk 0:01:10.6]} 33.
bxa3 {[%clk 0:00:25.1]} 33... Re3 {[%clk 0:01:10.1]} 34. h4 {[%clk 0:00:20.9]}
34... Rdd3 {[%clk 0:01:03.4]} 35. h5 {[%clk 0:00:20.9]} 35... Rxf3+ {[%clk
0:01:03.3]} 36. Kg4 {[%clk 0:00:21.3]} 36... Rg3+ {[%clk 0:00:59.3]} 37. Kf4
{[%clk 0:00:21.6]} 37... Rdf3+ {[%clk 0:00:59.2]} 38. Ke4 {[%clk 0:00:21.9]}
38... gxh5 {[%clk 0:00:58.7]} 39. a4 {[%clk 0:00:22.3]} 39... h4 {[%clk
0:00:54.8]} 40. a5 {[%clk 0:00:22.6]} 40... Ra3 {[%clk 0:00:51.8]} 41. Kf5
{[%clk 0:00:20.4]} 41... Kg7 {[%clk 0:00:50.9]} 42. Ke5 {[%clk 0:00:13.4]} 42...
Rxg5+ {[%clk 0:00:49.9]} 43. Kd6 {[%clk 0:00:13.5]} 43... Rd3+ {[%clk
0:00:48.9]} 0-1